fUST/lending_fUST_20240119
["ID","MTS","AMOUNT","RATE_DAILY","PERIOD"]
[312102929,1705626631725,-3047.10225221,0.00032,10]
[312102930,1705626631735,-6406.91272237,0.000325,15]
[312102932,1705626631744,-1206.23882079,0.00032793,2]
[312102934,1705626631753,-386.32476631,0.00033,2]
[312102935,1705626631762,-183.0,0.00033,2]
[312102937,1705626631772,-626.95157668,0.00033932,2]
[312102939,1705626631781,-500.0,0.00034,120]
[312102940,1705626631791,-155.74785362,0.00034088,2]
[312102941,1705626631801,-3794.98,0.00034093,3]
[312102942,1705626631811,-4832.27,0.00034093,3]
[312102943,1705626631820,-4026.89,0.00034093,3]
[312102944,1705626631829,-3355.75,0.00034093,3]
[312102945,1705626631838,-4808.34423242,0.000341,4]
[312102946,1705626631848,-500.0,0.000341,3]
[312102947,1705626631857,-8380.49,0.00034101,3]
[312102948,1705626631867,-503.8,0.00034102,3]
[312102949,1705626631876,-13745.48,0.00034102,3]
[312102950,1705626631885,-500.0,0.00034102,3]
[312102951,1705626631895,-2896.19,0.00034102,3]
[312102952,1705626631904,-500.0,0.00034102,3]
[312102953,1705626631913,-2738.53,0.00034102,3]
[312102954,1705626631923,-500.0,0.00034102,3]
[312102955,1705626631932,-711.52,0.00034102,3]
[312102956,1705626631941,-500.0,0.00034102,3]
[312102957,1705626631950,-500.0,0.00034102,3]
[312102958,1705626631960,-1079.45,0.00034102,3]
[312102959,1705626631969,-500.0,0.00034103,3]
[312102960,1705626631978,-509.40069482,0.00034103,3]
[312102961,1705626631987,-500.0,0.00034103,3]
[312102962,1705626631997,-500.0,0.00034103,3]
[312102963,1705626632006,-500.0,0.00034103,3]
[312102964,1705626632015,-500.0,0.00034103,3]
[312102965,1705626632024,-500.0,0.00034103,3]
[312102966,1705626632033,-500.0,0.00034103,3]
[312102967,1705626632042,-500.0,0.00034103,3]
[312102968,1705626632051,-235.06961644,0.00034103,3]
[312102969,1705626632061,-500.0,0.00034103,3]
[312102970,1705626632070,-500.0,0.00034103,3]
[312102971,1705626632079,-500.0,0.00034103,3]
[312102972,1705626632088,-500.0,0.00034103,3]
[312102973,1705626632098,-500.0,0.00034103,3]
[312102974,1705626632106,-500.0,0.00034103,3]
[312102975,1705626632116,-500.0,0.00034103,3]
[312102976,1705626632125,-182.76493635,0.00034103,3]
[312102977,1705626632134,-500.0,0.00034103,3]
[312102978,1705626632143,-1770.67,0.00034103,3]
[312102979,1705626632151,-580.21137116,0.00034103,3]
[312102980,1705626632160,-725.2,0.00034103,3]
[312102981,1705626632169,-500.0,0.00034103,3]
[312102982,1705626632177,-1642.96314706,0.00034103,3]
[312102983,1705626632193,-127.71685294,0.00034103,3]
[312102984,1705626632203,-500.0,0.00034103,3]
[312102985,1705626632212,-500.0,0.00034103,3]
[312102986,1705626632221,-334.47130794,0.00034103,3]
[312103016,1705626637865,-2796.45,0.00034093,3]
[312103017,1705626637874,-165.52869206,0.00034103,3]
[312103018,1705626637883,-655.17,0.00034103,3]
[312103019,1705626637891,-613.20896247,0.00034103,3]
[312103020,1705626637900,-907.59,0.00034103,3]
[312103021,1705626637909,-652.64,0.00034103,3]
[312103022,1705626637917,-3675.51,0.00034103,3]
[312103023,1705626637926,-500.0,0.00034103,3]
[312103024,1705626637935,-3838.84,0.00034103,3]
[312103025,1705626637944,-500.0,0.00034103,3]
[312103028,1705626637952,-500.0,0.00034103,3]
[312103031,1705626637962,-500.0,0.00034103,3]
[312103033,1705626637971,-531.34,0.00034103,3]
[312103035,1705626637981,-1226.1,0.00034103,3]
[312103037,1705626637989,-332.77454815,0.00034103,3]
[312103039,1705626637998,-500.0,0.00034103,3]
[312103040,1705626638007,-531.85235141,0.00034103,3]
[312103042,1705626638016,-500.0,0.00034103,3]
[312103045,1705626638026,-500.0,0.00034103,3]
[312103047,1705626638034,-500.0,0.00034111,3]
[312103048,1705626638043,-510.87532683,0.00034111,3]
[312103051,1705626638053,-500.0,0.00034111,3]
[312103053,1705626638062,-500.0,0.00034111,3]
[312103055,1705626638070,-500.0,0.00034111,3]
[312103056,1705626638079,-500.0,0.00034111,3]
[312103058,1705626638089,-500.0,0.00034111,3]
[312103060,1705626638097,-500.0,0.00034111,3]
[312103062,1705626638106,-500.0,0.00034111,3]
[312103065,1705626638115,-571.23,0.00034111,3]
[312103067,1705626638125,-500.0,0.00034111,3]
[312103068,1705626638134,-500.0,0.00034111,3]
[312103070,1705626638143,-215.19498296,0.00034111,5]
[312103072,1705626638152,-500.0,0.00034111,3]
[312103074,1705626638161,-500.0,0.00034111,3]
[312103076,1705626638171,-500.0,0.00034111,3]
[312103078,1705626638180,-500.0,0.00034111,3]
[312103081,1705626638190,-500.0,0.00034111,3]
[312103082,1705626638198,-500.0,0.00034111,3]
[312103085,1705626638208,-500.0,0.00034111,3]
[312103087,1705626638217,-500.0,0.00034111,3]
[312103088,1705626638226,-500.0,0.00034111,3]
[312103091,1705626638236,-502.79057372,0.00034111,3]
[312103093,1705626638245,-500.0,0.00034111,3]
[312103094,1705626638254,-500.0,0.00034111,3]
[312103096,1705626638263,-1688.92,0.00034111,3]
[312103098,1705626638272,-500.0,0.00034111,3]
[312103100,1705626638281,-500.0,0.00034111,3]
[312103102,1705626638290,-500.0,0.00034111,3]
[312103104,1705626638299,-500.0,0.00034111,3]
[312103106,1705626638308,-1530.76,0.00034111,3]
[312103108,1705626638317,-500.0,0.00034111,3]
[312103109,1705626638325,-500.0,0.00034111,3]
[312103111,1705626638335,-500.0,0.00034111,3]
[312103113,1705626638344,-500.0,0.00034111,3]
[312103115,1705626638353,-500.0,0.00034111,3]
[312103117,1705626638362,-500.0,0.00034111,3]
[312103119,1705626638371,-500.0,0.00034111,3]
[312103120,1705626638380,-504.34510773,0.00034111,3]
[312103121,1705626638389,-150.0,0.00034111,3]
[312103122,1705626638398,-500.0,0.00034111,3]
[312103123,1705626638407,-500.0,0.00034111,3]
[312103124,1705626638416,-500.0,0.00034111,3]
[312103125,1705626638426,-500.0,0.00034111,3]
[312103126,1705626638435,-500.0,0.00034111,3]
[312103127,1705626638443,-500.0,0.00034111,3]
[312103128,1705626638453,-500.0,0.00034111,3]
[312103129,1705626638463,-500.0,0.00034111,3]
[312103130,1705626638473,-500.0,0.00034111,7]
[312103131,1705626638483,-258.65098072,0.00034112,4]
[312103132,1705626638493,-5136.25940385,0.00034112,4]
[312103133,1705626638504,-154.9690062,0.00034112,4]
[312103134,1705626638513,-154.9690062,0.00034112,4]
[312103135,1705626638522,-5426.24785847,0.00034112,3]
[312103136,1705626638531,-1195.47,0.00034112,3]
[312103137,1705626638541,-1388.6,0.00034112,3]
[312103138,1705626638551,-512.11337829,0.00034112,3]
[312103139,1705626638561,-500.0,0.00034112,3]
[312103140,1705626638570,-500.0,0.00034112,3]
[312103141,1705626638579,-500.0,0.00034112,3]
[312103142,1705626638588,-724.06,0.00034112,3]
[312103143,1705626638598,-1613.87,0.00034112,3]
[312103144,1705626638607,-3166.15,0.00034112,3]
[312103145,1705626638618,-596.55,0.00034112,3]
[312103146,1705626638627,-500.0,0.00034113,3]
[312103147,1705626638638,-500.89027752,0.00034113,3]
[312103148,1705626638646,-500.0,0.00034113,3]
[312103149,1705626638655,-233.24929711,0.00034113,3]
[312103150,1705626638666,-500.0,0.00034113,3]
[312103151,1705626638675,-1125.7,0.00034113,3]
[312103152,1705626638684,-500.0,0.00034113,3]
[312103153,1705626638695,-500.0,0.00034113,3]
[312103154,1705626638704,-500.0,0.00034113,3]
[312103155,1705626638716,-500.0,0.00034113,3]
[312103156,1705626638726,-500.0,0.00034113,3]
[312103157,1705626638735,-500.0,0.00034113,3]
[312103158,1705626638744,-500.0,0.00034113,3]
[312103159,1705626638753,-500.0,0.00034113,3]
[312103160,1705626638762,-1000.0,0.00034113,2]
[312103161,1705626638771,-500.0,0.00034113,3]
[312103162,1705626638780,-500.0,0.00034113,3]
[312103163,1705626638791,-500.0,0.00034113,3]
[312103164,1705626638802,-501.23578352,0.00034113,3]
[312103165,1705626638811,-500.0,0.00034113,3]
[312103166,1705626638820,-500.0,0.00034113,3]
[312103167,1705626638828,-681.76,0.00034113,3]
[312103168,1705626638838,-500.0,0.00034113,3]
[312103169,1705626638847,-500.0,0.00034113,3]
[312103170,1705626638856,-1629.4,0.00034113,3]
[312103171,1705626638867,-184.28810456,0.00034113,3]
[312103172,1705626638877,-500.74779451,0.00034113,3]
[312103173,1705626638887,-1590.5,0.00034113,3]
[312103174,1705626638895,-500.0,0.00034113,3]
[312103175,1705626638905,-500.0,0.00034113,3]
[312103176,1705626638914,-256.06221171,0.00034114,3]
[312103177,1705626638923,-500.0,0.00034114,3]
[312103178,1705626638932,-500.0,0.00034114,3]
[312103179,1705626638942,-500.0,0.00034114,3]
[312103180,1705626638950,-599.2813958,0.00034114,3]
[312103181,1705626638960,-500.0,0.00034114,3]
[312103182,1705626638969,-500.0,0.00034114,3]
[312103183,1705626638977,-500.0,0.00034114,3]
[312103184,1705626638986,-505.44493024,0.00034114,3]
[312103185,1705626638996,-500.0,0.00034114,3]
[312103186,1705626639004,-500.0,0.00034114,3]
[312103187,1705626639013,-500.0,0.00034114,3]
[312103188,1705626639022,-500.0,0.00034114,3]
[312103189,1705626639031,-500.0,0.00034114,2]
[312103190,1705626639040,-500.0,0.00034114,3]
[312103191,1705626639049,-500.0,0.00034114,3]
[312103192,1705626639058,-501.22965993,0.00034114,3]
[312103193,1705626639068,-500.0,0.00034114,3]
[312103194,1705626639077,-484.98557257,0.00034114,3]
[312103195,1705626639086,-500.0,0.00034114,3]
[312103196,1705626639096,-500.0,0.00034114,3]
[312103197,1705626639105,-574.10867048,0.00034114,3]
[312103198,1705626639115,-500.0,0.00034114,3]
[312103199,1705626639124,-500.0,0.00034114,3]
[312103200,1705626639133,-559.7474189,0.00034114,3]
[312103201,1705626639142,-598.64448165,0.00034114,3]
[312103202,1705626639151,-233.13048792,0.00034114,3]
[312103203,1705626639160,-500.0,0.00034114,3]
[312103204,1705626639169,-500.0,0.00034114,3]
[312103205,1705626639179,-501.26412929,0.00034114,3]
[312103206,1705626639187,-500.0,0.00034114,3]
[312103207,1705626639197,-500.0,0.00034114,3]
[312103208,1705626639207,-168.03724016,0.00034114,3]
[312103209,1705626639216,-500.0,0.00034114,3]
[312103210,1705626639225,-500.0,0.00034114,3]
[312103211,1705626639234,-500.0,0.00034114,3]
[312103212,1705626639243,-500.0,0.00034114,3]
[312103213,1705626639252,-500.0,0.00034114,3]
[312103214,1705626639261,-512.23425571,0.00034114,3]
[312103215,1705626639269,-386.3934556,0.00034114,3]
[312103216,1705626639278,-500.0,0.00034114,3]
[312103217,1705626639287,-521.98,0.00034114,3]
[312103218,1705626639371,-500.0,0.00034114,3]
[312103219,1705626639380,-500.0,0.00034114,3]
[312103220,1705626639389,-615.20791133,0.00034114,3]
[312103221,1705626639398,-500.0,0.00034114,3]
[312103222,1705626639407,-163.0875016,0.00034114,3]
[312103223,1705626639416,-500.0,0.00034114,3]
[312103224,1705626639425,-500.0,0.00034114,3]
[312103225,1705626639434,-358.13230687,0.00034114,3]
[312103226,1705626639443,-500.0,0.00034114,2]
[312103227,1705626639452,-500.0,0.00034114,3]
[312103228,1705626639461,-500.49883489,0.00034114,3]
[312103229,1705626639471,-500.0,0.00034114,3]
[312103230,1705626639479,-500.0,0.00034114,3]
[312103231,1705626639488,-500.0,0.00034114,3]
[312103232,1705626639497,-973.69,0.00034114,3]
[312103233,1705626639506,-500.0,0.00034114,3]
[312103234,1705626639515,-500.0,0.00034114,3]
[312103235,1705626639524,-500.0,0.00034114,3]
[312103236,1705626639533,-271.5670683,0.00034114,3]
[312103237,1705626639542,-500.0,0.00034114,3]
[312103238,1705626639551,-512.34129118,0.00034114,3]
[312103239,1705626639560,-500.0,0.00034114,3]
[312103240,1705626639569,-501.79610948,0.00034114,3]
[312103241,1705626639578,-500.0,0.00034114,3]
[312103242,1705626639587,-500.0,0.00034114,3]
[312103243,1705626639596,-500.0,0.00034114,3]
[312103244,1705626639605,-500.0,0.00034114,3]
[312103245,1705626639614,-500.0,0.00034114,3]
[312103246,1705626639623,-500.0,0.00034114,3]
[312103247,1705626639632,-500.0,0.00034114,3]
[312103248,1705626639641,-1000.0,0.00034114,2]
[312103249,1705626639650,-500.0,0.00034114,3]
[312103250,1705626639659,-500.0,0.00034114,3]
[312103251,1705626639668,-500.0,0.00034114,3]
[312103252,1705626639676,-500.0,0.00034114,3]
[312103253,1705626639685,-500.0,0.00034114,3]
[312103254,1705626639697,-500.0,0.00034114,3]
[312103255,1705626639706,-500.0,0.00034114,3]
[312103256,1705626639717,-500.0,0.00034114,3]
[312103257,1705626639726,-500.0,0.00034114,3]
[312103258,1705626639735,-500.0,0.00034114,3]
[312103259,1705626639744,-500.0,0.00034114,14]
[312103260,1705626639753,-500.0,0.00034114,3]
[312103261,1705626639762,-500.0,0.00034114,3]
[312103262,1705626639771,-500.0,0.00034114,3]
[312103263,1705626639781,-500.0,0.00034114,3]
[312103264,1705626639791,-500.0,0.00034114,3]
[312103265,1705626639801,-500.0,0.00034114,3]
[312103266,1705626639810,-500.0,0.00034114,3]
[312103267,1705626639819,-500.0,0.00034114,3]
[312103269,1705626639828,-500.0,0.00034114,3]
[312103271,1705626639838,-319.09382054,0.00034114,3]
[312103273,1705626639847,-500.0,0.00034114,3]
[312103276,1705626639856,-500.0,0.00034114,3]
[312103278,1705626639866,-500.0,0.00034114,3]
[312103280,1705626639875,-605.78919628,0.00034114,3]
[312103282,1705626639884,-500.0,0.00034114,3]
[312103284,1705626639893,-500.0,0.00034114,3]
[312103286,1705626639902,-500.0,0.00034114,3]
[312103288,1705626639911,-500.0,0.00034114,3]
[312103290,1705626639920,-201.65120246,0.00034114,3]
[312103292,1705626639929,-500.0,0.00034114,3]
[312103293,1705626639937,-500.0,0.00034114,3]
[312103295,1705626639946,-500.0,0.00034114,3]
[312103296,1705626639955,-500.0,0.00034145,3]
[312103297,1705626639964,-500.0,0.00034145,3]
[312103299,1705626639974,-500.0,0.00034145,3]
[312103300,1705626639983,-10034.96905079,0.00034188,5]
[312103304,1705626639993,-1251.6,0.00034188,4]
[312103306,1705626640002,-12913.50579677,0.0003421,5]
[312103309,1705626640011,-2421.28233689,0.0003421,5]
[312103312,1705626640021,-38540.84059844,0.00034288,3]
[312103314,1705626640030,-662.0,0.00034346,30]
[312103316,1705626640039,-662.0,0.00034356,30]
[312103318,1705626640049,-662.0,0.00034366,30]
[312103321,1705626640058,-8380.49,0.00034375,3]
[312103323,1705626640067,-503.8,0.00034376,3]
[312103326,1705626640077,-13745.48,0.00034376,3]
[312103328,1705626640086,-500.0,0.00034376,3]
[312103330,1705626640094,-2896.19,0.00034376,3]
[312103333,1705626640103,-2738.53,0.00034376,3]
[312103335,1705626640112,-500.0,0.00034376,3]
[312103338,1705626640122,-711.52,0.00034376,3]
[312103340,1705626640131,-500.0,0.00034376,3]
[312103342,1705626640140,-1079.45,0.00034376,3]
[312103344,1705626640149,-500.0,0.00034377,3]
[312103346,1705626640158,-500.0,0.00034377,3]
[312103348,1705626640167,-500.0,0.00034377,3]
[312103350,1705626640176,-500.0,0.00034377,3]
[312103352,1705626640185,-500.0,0.00034377,3]
[312103354,1705626640193,-500.0,0.00034377,3]
[312103356,1705626640202,-500.0,0.00034377,3]
[312103357,1705626640212,-500.0,0.00034377,3]
[312103358,1705626640221,-500.0,0.00034377,3]
[312103359,1705626640230,-505.0311503,0.00034377,3]
[312103360,1705626640240,-500.0,0.00034377,3]
[312103361,1705626640249,-500.0,0.00034377,3]
[312103362,1705626640258,-500.0,0.00034377,3]
[312103363,1705626640266,-500.0,0.00034377,3]
[312103364,1705626640275,-500.0,0.00034377,3]
[312103365,1705626640284,-1770.67,0.00034377,3]
[312103366,1705626640293,-725.2,0.00034377,3]
[312103367,1705626640302,-500.0,0.00034377,3]
[312103368,1705626640311,-1770.68,0.00034377,3]
[312103369,1705626640320,-500.0,0.00034377,3]
[312103370,1705626640329,-655.17,0.00034377,3]
[312103371,1705626640338,-907.59,0.00034377,3]
[312103372,1705626640347,-652.64,0.00034377,3]
[312103373,1705626640356,-3675.51,0.00034377,3]
[312103374,1705626640365,-3838.84,0.00034377,3]
[312103375,1705626640375,-502.77780565,0.00034377,3]
[312103376,1705626640383,-435.91897131,0.00034377,3]
[312103377,1705626640392,-500.0,0.00034377,3]
[312103378,1705626640401,-531.34,0.00034377,3]
[312103379,1705626640410,-1226.1,0.00034377,3]
[312103380,1705626640418,-500.0,0.00034377,3]
[312103381,1705626640427,-541.15127612,0.00034377,3]
[312103382,1705626640436,-500.0,0.00034377,3]
[312103383,1705626640445,-1255.02922,0.00034385,2]
[312103384,1705626640453,-500.0,0.00034385,3]
[312103385,1705626640462,-239.06152815,0.00034385,3]
[312103386,1705626640472,-500.0,0.00034385,3]
[312103387,1705626640482,-500.0,0.00034385,3]
[312103388,1705626640491,-500.0,0.00034385,3]
[312103389,1705626640500,-500.0,0.00034385,3]
[312103390,1705626640509,-571.23,0.00034385,3]
[312103391,1705626640518,-501.73625022,0.00034385,3]
[312103392,1705626640527,-531.07679041,0.00034385,3]
[312103393,1705626640536,-500.0,0.00034385,3]
[312103394,1705626640545,-500.0,0.00034385,3]
[312103395,1705626640554,-500.0,0.00034385,3]
[312103396,1705626640563,-437.21160687,0.00034385,3]
[312103397,1705626640572,-500.0,0.00034385,3]
[312103398,1705626640581,-500.0,0.00034385,3]
[312103399,1705626640590,-500.0,0.00034385,3]
[312103400,1705626640599,-1688.92,0.00034385,3]
[312103401,1705626640608,-500.0,0.00034385,3]
[312103402,1705626640617,-595.13893398,0.00034385,3]
[312103403,1705626640625,-500.0,0.00034385,3]
[312103404,1705626640634,-1530.76,0.00034385,3]
[312103405,1705626640643,-500.0,0.00034385,3]
[312103406,1705626640652,-512.67628657,0.00034385,3]
[312103407,1705626640661,-500.0,0.00034385,3]
[312103408,1705626640670,-500.0,0.00034385,3]
[312103409,1705626640679,-208.61301869,0.00034385,3]
[312103410,1705626640688,-150.0,0.00034385,3]
[312103411,1705626640699,-500.0,0.00034385,3]
[312103412,1705626640707,-500.0,0.00034385,3]
[312103413,1705626640716,-500.0,0.00034385,3]
[312103414,1705626640724,-205.71834794,0.00034385,3]
[312103415,1705626640733,-498.48161421,0.00034385,3]
[312103416,1705626640742,-500.0,0.00034385,3]
[312103417,1705626640751,-500.0,0.00034385,3]
[312103418,1705626640761,-500.0,0.00034385,7]
[312103419,1705626640770,-1195.47,0.00034386,3]
[312103420,1705626640779,-1388.6,0.00034386,3]
[312103421,1705626640790,-500.0,0.00034386,3]
[312103422,1705626640800,-500.0,0.00034386,3]
[312103423,1705626640809,-724.06,0.00034386,3]
[312103424,1705626640818,-1613.87,0.00034386,3]
[312103425,1705626640828,-3166.15,0.00034386,3]
[312103427,1705626640837,-596.55,0.00034386,3]
[312103429,1705626640846,-250.0,0.00034386,7]
[312103430,1705626640855,-151.0,0.00034386,2]
[312103431,1705626640864,-500.0,0.00034387,3]
[312103432,1705626640874,-631.35981574,0.00034387,3]
[312103433,1705626640883,-500.0,0.00034387,3]
[312103434,1705626640892,-1125.7,0.00034387,3]
[312103435,1705626640901,-500.0,0.00034387,3]
[312103436,1705626640910,-500.0,0.00034387,3]
[312103437,1705626640919,-500.0,0.00034387,3]
[312103438,1705626640928,-500.0,0.00034387,3]
[312103439,1705626640937,-500.0,0.00034387,3]
[312103440,1705626640946,-500.0,0.00034387,3]
[312103441,1705626640955,-502.18640949,0.00034387,3]
[312103442,1705626640965,-500.0,0.00034387,3]
[312103443,1705626640974,-1000.0,0.00034387,2]
[312103444,1705626640983,-500.0,0.00034387,3]
[312103445,1705626640992,-500.0,0.00034387,3]
[312103446,1705626641001,-500.0,0.00034387,3]
[312103447,1705626641010,-167.55025227,0.00034387,3]
[312103448,1705626641086,-681.76,0.00034387,3]
[312103449,1705626641096,-500.0,0.00034387,3]
[312103450,1705626641106,-500.0,0.00034387,3]
[312103451,1705626641114,-500.0,0.00034387,3]
[312103452,1705626641125,-1629.4,0.00034387,3]
[312103453,1705626641135,-1590.5,0.00034387,3]
[312103454,1705626641144,-500.0,0.00034387,3]
[312103455,1705626641153,-151.0,0.00034388,2]
[312103456,1705626641162,-1255.02922,0.00034388,2]
[312103457,1705626641171,-500.0,0.00034388,3]
[312103458,1705626641180,-500.0,0.00034388,3]
[312103459,1705626641189,-500.0,0.00034388,3]
[312103460,1705626641199,-501.60575561,0.00034388,3]
[312103461,1705626641209,-500.0,0.00034388,3]
[312103462,1705626641218,-234.32296402,0.00034388,3]
[312103463,1705626641227,-500.0,0.00034388,3]
[312103464,1705626641236,-500.0,0.00034388,3]
[312103465,1705626641245,-500.0,0.00034388,3]
[312103466,1705626641254,-500.0,0.00034388,3]
[312103467,1705626641264,-500.0,0.00034388,3]
[312103468,1705626641274,-500.0,0.00034388,3]
[312103469,1705626641283,-500.0,0.00034388,3]
[312103470,1705626641293,-500.0,0.00034388,3]
[312103471,1705626641302,-500.0,0.00034388,3]
[312103472,1705626641311,-500.0,0.00034388,3]
[312103473,1705626641319,-500.0,0.00034388,3]
[312103474,1705626641328,-500.0,0.00034388,3]
[312103475,1705626641337,-500.0,0.00034388,3]
[312103476,1705626641351,-500.0,0.00034388,3]
[312103477,1705626641360,-500.0,0.00034388,3]
[312103478,1705626641370,-501.8791705,0.00034388,3]
[312103479,1705626641379,-521.98,0.00034388,3]
[312103480,1705626641388,-500.0,0.00034388,3]
[312103481,1705626641397,-505.74744453,0.00034388,3]
[312103482,1705626641406,-500.0,0.00034388,3]
[312103483,1705626641415,-500.0,0.00034388,3]
[312103484,1705626641424,-500.0,0.00034388,3]
[312103485,1705626641434,-500.0,0.00034388,2]
[312103486,1705626641443,-500.0,0.00034388,3]
[312103487,1705626641453,-973.69,0.00034388,3]
[312103488,1705626641462,-500.0,0.00034388,3]
[312103489,1705626641471,-500.0,0.00034388,3]
[312103490,1705626641480,-500.0,0.00034388,3]
[312103491,1705626641489,-500.0,0.00034388,3]
[312103492,1705626641499,-500.0,0.00034388,3]
[312103493,1705626641508,-500.0,0.00034388,3]
[312103494,1705626641517,-500.0,0.00034388,3]
[312103495,1705626641526,-500.0,0.00034388,3]
[312103496,1705626641535,-500.0,0.00034388,3]
[312103497,1705626641544,-500.0,0.00034388,3]
[312103498,1705626641553,-500.0,0.00034388,3]
[312103499,1705626641562,-443.16856451,0.00034388,2]
[312103500,1705626641572,-500.0,0.00034388,3]
[312103501,1705626641581,-500.0,0.00034388,3]
[312103502,1705626641591,-230.7888052,0.00034388,3]
[312103503,1705626641599,-500.0,0.00034388,3]
[312103504,1705626641609,-500.0,0.00034388,3]
[312103505,1705626641619,-500.0,0.00034388,14]
[312103506,1705626641628,-282.28640194,0.00034388,3]
[312103507,1705626641636,-500.0,0.00034388,3]
[312103508,1705626641646,-500.0,0.00034388,3]
[312103509,1705626641655,-500.0,0.00034388,3]
[312103510,1705626641664,-500.0,0.00034388,3]
[312103511,1705626641674,-500.0,0.00034388,3]
[312103512,1705626641683,-500.0,0.00034388,3]
[312103513,1705626641693,-500.0,0.00034388,3]
[312103514,1705626641702,-500.0,0.00034388,3]
[312103515,1705626641715,-500.0,0.00034388,3]
[312103516,1705626641724,-500.0,0.00034388,3]
[312103517,1705626641735,-500.0,0.00034388,3]
[312103518,1705626641744,-500.0,0.00034388,3]
[312103519,1705626641754,-500.0,0.00034388,3]
[312103520,1705626641763,-183.0,0.00034521,2]
[312103521,1705626641773,-154.09075105,0.00034634,7]
[312103522,1705626641782,-8380.49,0.00034649,3]
[312103523,1705626641793,-503.8,0.0003465,3]
[312103524,1705626641803,-13745.48,0.0003465,3]
[312103525,1705626641812,-500.0,0.0003465,3]
[312103526,1705626641822,-2896.19,0.0003465,3]
[312103527,1705626641831,-2738.53,0.0003465,3]
[312103528,1705626641840,-500.0,0.0003465,3]
[312103529,1705626641849,-711.52,0.0003465,3]
[312103530,1705626641858,-500.0,0.0003465,3]
[312103531,1705626641868,-1079.45,0.0003465,3]
[312103532,1705626641878,-500.0,0.00034651,3]
[312103533,1705626641887,-500.0,0.00034651,3]
[312103534,1705626641896,-500.0,0.00034651,3]
[312103535,1705626641905,-391.65486998,0.00034651,3]
[312103536,1705626641915,-500.0,0.00034651,3]
[312103537,1705626641925,-500.0,0.00034651,3]
[312103538,1705626641935,-500.0,0.00034651,3]
[312103539,1705626641945,-500.0,0.00034651,3]
[312103540,1705626641955,-1770.67,0.00034651,3]
[312103541,1705626641965,-725.2,0.00034651,3]
[312103542,1705626641975,-500.0,0.00034651,3]
[312103543,1705626641986,-1770.68,0.00034651,3]
[312103544,1705626641995,-655.17,0.00034651,3]
[312103545,1705626642004,-907.59,0.00034651,3]
[312103546,1705626642013,-652.64,0.00034651,3]
[312103547,1705626642023,-3675.51,0.00034651,3]
[312103548,1705626642032,-3838.84,0.00034651,3]
[312103549,1705626642041,-500.0,0.00034651,3]
[312103550,1705626642049,-531.34,0.00034651,3]
[312103551,1705626642058,-1226.1,0.00034651,3]
[312103552,1705626642068,-502.67519078,0.00034651,3]
[312103553,1705626642077,-1255.02922,0.00034659,2]
[312103554,1705626642086,-500.0,0.00034659,3]
[312103555,1705626642095,-500.0,0.00034659,3]
[312103556,1705626642104,-500.0,0.00034659,3]
[312103557,1705626642113,-233.2988435,0.00034659,3]